Cogmind - Beta 16 @@@ ROGUE MODE // 2025.11.06 @ 10:51:49 Player: Lazz Result: Destroyed by H-71 Marshal with Heavy Mass Driver Performance ------------- Evolutions (5) 2500 Regions Visited (8) 1600 Robots Destroyed (71) 355 Value Destroyed (2877) 2877 Prototype IDs (26) 520 Alien Tech Used (0) 0 Bonus (708) 708 TOTAL SCORE: 8560 Bonus ------- High Alert Combat Kills 160 Follower Combat Kills 248 Aligned with FarCom 300 Cogmind --------- Core Integrity 0/1000 Matter 112/300 Energy 315/315 System Corruption 7% Temperature Cool (0) Movement Treading (250) Ox1 Location -5/Factory Parts ------- > --- POWER (2) -------- Fusion Compressor Neutrino Core > --- PROPULSION (6) --- Armored Medium Treads > --- UTILITY (6) ------ Advanced Heat Sink Improved Signal Interpreter Improved Terrain Scan Processor Layered Heavy Armor Plating System Guard > --- WEAPON (3) ------- Ionic Axe Lance > --- INVENTORY (5) ---- Light Angular Momentum Engine Improved Target Analyzer Phase Shifter Hacking Suite Tesla Rifle Peak State ------------ > --- POWER ------------ Neutrino Core Micro Fission Core > --- PROPULSION ------- Medium Treads Armored Medium Treads Armored Medium Treads Armored Medium Treads Armored Medium Treads Armored Medium Treads > --- UTILITY ---------- Advanced Heat Sink Improved Signal Interpreter Improved Terrain Scan Processor Layered Heavy Armor Plating System Guard > --- WEAPON ----------- Tesla Rifle Ionic Axe Lance > --- INVENTORY -------- Light Angular Momentum Engine Improved Target Analyzer Phase Shifter Hacking Suite Tesla Rifle [Rating: 95] Favorites ----------- Power Light Deuterium Engine Engine Light Deuterium Engine Power Core Micro Nuclear Core Propulsion Improved Treads Treads Improved Treads Leg Aluminum Leg Hover Unit Gravmag System Flight Unit VTOL Module Utility Improved Terrain Scan Processor Device ECM Suite Storage High-capacity Storage Unit Processor Improved Terrain Scan Processor Hackware Improved System Shield Protection Layered Heavy Armor Plating Weapon Gauss Rifle Energy Gun Gatling Laser Energy Cannon Heavy Ion Cannon Ballistic Gun Gauss Rifle Ballistic Cannon Enhanced Gauss Cannon Special Weapon Field Lobotomy Kit Slashing Weapon Ionic Axe Piercing Weapon Lance Build | -11 -10 -10 -10 -9 -8 -7 -6 -5 ------- Run | Yrd Mat Min Exi Min Mat Fac Fac Fac Slots Evolved 10 | . . . . . 4 2 2 2 Power 1 | . . . . . . . . 1 Propulsion 4 | . . . . . 2 . 2 . Utility 4 | . . . . . 2 1 . 1 Weapon 1 | . . . . . . 1 . . Parts Attached 83 | 6 3 2 5 2 8 5 17 35 Power 10 | 1 . 1 . . . 1 2 5 Engine 5 | 1 . 1 . . . . 1 2 Core 5 | . . . . . . 1 1 3 Reactor . | . . . . . . . . . Propulsion 29 | 2 2 . 2 . 2 1 10 10 Treads 19 | . 2 . 2 . 2 1 2 10 Leg 2 | 2 . . . . . . . . Wheel . | . . . . . . . . . Hover 1 | . . . . . . . 1 . Flight 7 | . . . . . . . 7 . Utility 21 | 1 1 . 3 . 4 1 1 10 Device 7 | . 1 . . . 2 . . 4 Storage 5 | 1 . . 3 . . . . 1 Processor 3 | . . . . . 1 1 . 1 Hackware 1 | . . . . . . . 1 . Protection 5 | . . . . . 1 . . 4 Artifact . | . . . . . . . . . Weapon 23 | 2 . 1 . 2 2 2 4 10 Energy Gun 7 | 2 . 1 . 1 . . . 3 Energy Cannon 4 | . . . . . . 1 2 1 Ballistic Gun 7 | . . . . 1 1 1 1 3 Ballistic Cannon 1 | . . . . . . . . 1 Launcher . | . . . . . . . . . Special Weapon 2 | . . . . . 1 . 1 . Impact Weapon . | . . . . . . . . . Slashing Weapon 1 | . . . . . . . . 1 Piercing Weapon 1 | . . . . . . . . 1 Special Melee Weapon . | . . . . . . . . . Unidentified Prototypes 1 | . . . . . . . . 1 Parts Lost 28 | . . 1 . . . 1 2 24 Power 4 | . . . . . . . . 4 Propulsion 11 | . . . . . . 1 2 8 Utility 6 | . . . . . . . . 6 Weapon 7 | . . 1 . . . . . 6 Highest Loss Streak 10 | . . 1 . . . 1 1 10 To Critical Strikes . | . . . . . . . . . Average Backups 9 | 2 6 7 7 10 12 19 12 3 Power 2 | . 1 1 2 2 2 4 3 . Propulsion 2 | 1 4 6 4 4 3 5 1 . Utility 1 | . . . . 1 1 2 2 2 Weapon 1 | . 1 . . 1 3 5 3 . Tool/Special . | . . . . . . . . . Unused Backups 18 | . 2 . . . . 4 7 5 Power 5 | . . . . . . . 5 . Propulsion 5 | . 2 . . . . 3 . . Utility 5 | . . . . . . . 1 4 Weapon 3 | . . . . . . 1 1 1 Tool/Special . | . . . . . . . . . Average Slot Usage (%) 94 | . 89 100 100 100 90 99 97 85 Engine 6 | . 14 14 14 14 9 2 1 4 Core 2 | . . . . . . 4 4 4 Treads 28 | . 16 28 28 28 33 30 19 31 Flight 2 | . . . . . . . 19 . Device 11 | . 8 14 14 14 12 14 13 6 Storage 6 | . 14 14 14 14 9 7 3 . Processor 8 | . . . . . 3 10 13 15 Protection 2 | . . . . . 5 4 . 4 Energy Gun 9 | . 28 28 28 18 2 6 2 2 Energy Cannon 3 | . . . . . . 5 7 3 Ballistic Gun 5 | . . . . 9 15 8 7 2 Peak Build Rating 95 | 6 11 13 14 20 32 43 52 95 Average Rating 44 | 4 8 12 13 18 28 41 46 76 On Entrance 20 | . 6 11 13 14 20 32 42 47 Avg Prop Armor Cover (%) 9 | . . . . . . . 10 4 Naked Turns . | . . . . . . . . . Heaviest Build 69 | 14 15 14 49 54 59 69 65 62 Greatest Support 163 | 20 46 46 46 46 91 91 137 163 Greatest Overweight (x) 8 | 1 4 . 1 1 1 . 8 8 Average Overweight (x) . | . . . . 1 . . . . Largest Inventory Capacity 20 | 8 8 8 20 20 20 20 20 8 Average Capacity 12 | 7 8 8 15 20 20 20 14 5 Most Carried 20 | 5 8 8 9 11 18 20 20 5 Average Carried 9 | 2 6 7 7 10 12 19 12 4 Final Capacity 20 | 8 8 8 20 20 20 20 5 5 Final Carried 19 | 4 8 8 8 11 18 19 5 5 Class Distribution -------------------- 45% | Mutant 25% | Skirmisher 21% | Scavenger-Skirmisher 5% | Scavenger-Mutant Dominant Class ---------------- Mutant | -10/Materials Mutant | -10/Mines Mutant | -10/Exiles Mutant | -9/Mines Mutant | -8/Materials Skirmisher | -7/Factory Scavenger-Skirmisher | -6/Factory Scavenger-Skirmisher | -5/Factory Resources | -11 -10 -10 -10 -9 -8 -7 -6 -5 ----------- Run | Yrd Mat Min Exi Min Mat Fac Fac Fac Matter Collected 1952 | 260 28 20 . 50 195 204 344 851 Remotely . | . . . . . . . . . Salvage Created 2684 | 78 28 175 . . 306 304 549 1244 Parts 163 | 1 3 6 . . 21 17 26 89 Haulers Intercepted . | . . . . . . . . . Recyclers Shooed 2 | . . 1 . . . . 1 . Parts Field Recycled . | . . . . . . . . . Retrieved Matter . | . . . . . . . . . Parts Self-Destructed . | . . . . . . . . . Prevented . | . . . . . . . . . Parts Restored . | . . . . . . . . . Kills | -11 -10 -10 -10 -9 -8 -7 -6 -5 ------- Run | Yrd Mat Min Exi Min Mat Fac Fac Fac Combat Hostiles Destroyed 57 | . . 3 . . 6 9 13 26 Melee 7 | . . . . . . . . 7 Guns 24 | . . 3 . . 6 5 7 3 Cannons 25 | . . . . . . 4 6 15 AOE 1 | . . . . . . . . 1 Classes Destroyed 10 | 1 1 2 . . 1 2 . 3 Worker 1 | . . . . . . . . 1 Builder 6 | . . . . . . . . 6 Recycler 2 | 1 . . . . . . 1 . Operator 1 | . . . . . . . . 1 Watcher 4 | . 1 . . . . 1 . 2 Swarmer 23 | . . . . . . 4 10 9 Grunt 16 | . . 2 . . 3 2 2 7 Sentry 5 | . . . . . 3 . . 2 Demolisher 1 | . . 1 . . . . . . Programmer 12 | . . . . . . 3 1 8 Best Kill Streak 5 | 1 1 2 . . 2 4 5 5 Combat Bots Only 5 | . . 2 . . 2 4 5 5 Max Kills in Single Turn 2 | 1 1 1 . . 1 1 2 1 Gunslinging . | . . . . . . . . . Exploded 1 | . . . . . . . . 1 Melee 1 | . . . . . . . . 1 Uniques/NPCs Destroyed . | . . . . . . . . . Combat | -11 -10 -10 -10 -9 -8 -7 -6 -5 -------- Run | Yrd Mat Min Exi Min Mat Fac Fac Fac Hostile Shots Fired 584 | . 17 15 . . 26 58 60 408 Missed 174 | . 2 3 . . 8 20 19 122 Hits 410 | . 15 12 . . 18 38 41 286 Projectile 410 | . 15 12 . . 18 38 41 286 AOE 6 | . . 2 . . . . . 4 Critical Strikes 18 | . . . . . . 3 1 14 Part Disruptions 5 | . . . . . . 1 . 4 Damage Taken 9050 | . 124 210 . . 278 645 633 7160 Core 1258 | . 9 30 . . 39 77 72 1031 Absorbed by Shields . | . . . . . . . . . Regen/Repaired (Parts) 13 | . . . . . . 13 . . Core Remaining (%) 91 | 100 . . . 84 92 89 91 . Volleys Fired 169 | 2 1 18 . . 21 29 25 73 Largest 3 | 2 2 2 . . 2 3 3 3 Hottest 210 | 90 90 90 . . 108 173 188 210 Shots Fired 411 | 4 2 34 . . 41 69 70 191 Gun 231 | 4 2 34 . . 40 44 41 66 Cannon 175 | . . . . . . 25 29 121 Launcher . | . . . . . . . . . Special 5 | . . . . . 1 . . 4 Kinetic 185 | . . . . . 37 28 35 85 Thermal 182 | 2 1 29 . . 3 41 35 71 Explosive . | . . . . . . . . . Electromagnetic 39 | 2 1 5 . . . . . 31 Robot Hit Streak 16 | 4 5 7 . . 6 9 8 16 Robot Miss Streak 9 | . . 3 . . 9 5 6 3 Penetration Max 1 | . . . . . . . 1 1 Secondary Targets . | . . . . . . . . . Shots Hit Robots 292 | 4 1 23 . . 29 50 43 142 Core Hits 145 | 2 1 13 . . 12 30 36 51 Critical Kills 1 | . . . . . . . . 1 Critical Parts Destroyed 1 | . . . . . . . . 1 Critical Strikes 18 | . . . . . . . . 18 Destroy 2 | . . . . . . . . 2 Blast 7 | . . . . . . . . 7 Sever 9 | . . . . . . . . 9 Melee Attacks 41 | . . . . . . . . 41 Impact . | . . . . . . . . . Slashing 41 | . . . . . . . . 41 Piercing . | . . . . . . . . . Sneak Attacks . | . . . . . . . . . Combat Hostiles . | . . . . . . . . . Follow-up Attacks . | . . . . . . . . . Damage Inflicted 8182 | 88 24 338 . . 434 1130 1019 5149 Guns 2747 | 40 24 338 . . 434 620 564 727 Cannons 3568 | . . . . . . 510 455 2603 Explosions 278 | 48 . . . . . . . 230 Melee 1563 | . . . . . . . . 1563 Ramming 26 | . . . . . . . . 26 Kinetic 2741 | . . . . . 413 347 443 1538 Thermal 3475 | 60 . 295 . . 21 783 576 1740 Explosive . | . . . . . . . . . Electromagnetic 377 | 28 24 43 . . . . . 282 Impact . | . . . . . . . . . Slashing 1563 | . . . . . . . . 1563 Piercing . | . . . . . . . . . Highest Corruption 7 | . . . . . . 1 1 7 Average Corruption 2 | . . . . . . 1 1 2 Corruption Purged 4 | . . . . . . . . 4 Corruption Blocked . | . . . . . . . . . Effects 15 | . . . . . . 1 1 13 Message Errors 3 | . . . . . . . . 3 Matter Fused 3 | . . . . . . 1 . 2 Heat Flow Errors 1 | . . . . . . . . 1 Energy Discharges 4 | . . . . . . . 1 3 Data Loss (minor) 2 | . . . . . . . . 2 Alerts 1 | . . . . . . . . 1 Weapon Failures 1 | . . . . . . . . 1 Overload Shots . | . . . . . . . . . Overflow Damage 395 | . . . . . . 34 . 361 Projectiles 208 | . . . . . . 34 . 174 Explosions 161 | . . . . . . . . 161 Melee 26 | . . . . . . . . 26 Knockbacks 12 | . . . . . . . . 12 Impact . | . . . . . . . . . Kinetic 12 | . . . . . . . . 12 Secondary . | . . . . . . . . . Self-Inflicted Damage 281 | . . . . . . . . 281 Shots 3 | . . . . . . . . 3 Rammed 2 | . . . . . . . . 2 Targets Rammed 4 | . . . . . . . . 4 Kicked . | . . . . . . . . . Crushed 2 | . . . . . . . . 2 Highest Temperature 473 | 60 30 199 . . 96 436 260 473 Average Temperature 112 | 31 18 102 . . 23 130 76 143 Received Heat Transfer 1348 | . 6 90 . . 135 81 45 991 Effects 11 | . . . . . . 1 4 6 Shutdowns 4 | . . . . . . 1 . 3 Energy Bleed 2 | . . . . . . . 1 1 Interference 3 | . . . . . . . 3 . Matter Decay 1 | . . . . . . . . 1 Damage (minor) 1 | . . . . . . . . 1 Siege Activations . | . . . . . . . . . Martial Activations . | . . . . . . . . . Shielding Activations . | . . . . . . . . . Robots Disrupted . | . . . . . . . . . Combat Hostiles . | . . . . . . . . . Robots Corrupted . | . . . . . . . . . Combat Hostiles . | . . . . . . . . . Parts Fried 1 | . . . . . . . . 1 Impact Corruptions . | . . . . . . . . . Robots Melted . | . . . . . . . . . Combat Hostiles . | . . . . . . . . . Parts Melted 5 | . . . . . . 2 1 2 Heat Transferred 5263 | 87 . 817 . . 50 1179 880 2250 Parts Sabotaged . | . . . . . . . . . Parts Stolen . | . . . . . . . . . Parts Stripped . | . . . . . . . . . Power Chain Reactions 1 | 1 . . . . . . . . Alert | -11 -10 -10 -10 -9 -8 -7 -6 -5 ------- Run | Yrd Mat Min Exi Min Mat Fac Fac Fac Maximum Alert Level 3 | . . . . . . . . 3 Low Security (%) 78 | 100 100 100 . 100 100 100 100 44 Level 1 8 | . . . . . . . . 21 Level 2 11 | . . . . . . . . 30 Level 3 1 | . . . . . . . . 3 Level 4 . | . . . . . . . . . Level 5 . | . . . . . . . . . High Security . | . . . . . . . . . Max Security . | . . . . . . . . . Peak Influence 708 | 5 8 55 . . 56 106 98 708 Initial 39 | . . . . . . . 39 . Average 124 | . . 17 . . 12 25 41 287 Influence Increases 2385 | 5 8 110 . . 196 300 334 1432 Destroy 0b10 Robot/C 1260 | . . 60 . . 120 180 260 640 Destroy 0b10 Robot/NC 70 | 5 5 . . . . 5 5 50 Destroy Leader 278 | . 2 20 . . 40 52 50 114 Allied During Kill 25 | . . . . . . . . 25 Successful Hack 36 | . . . . . 19 . 17 . Disable Machine 150 | . . 15 . . . 60 . 75 Anti-Garrison Action 150 | . . . . . . . . 150 Destroy Structure 206 | . 1 . . . 2 3 2 198 Lose Combat Pursuer 210 | . . 15 . . 15 . . 180 Influence Decreases 1709 | 5 8 110 . . 196 218 416 756 Entered New Map 43 | . . . . . . . 43 . Time Decay 1215 | 5 8 100 . . 138 218 340 406 Lost Part 150 | . . 10 . . . . 20 120 Lost Ally 80 | . . . . . . . . 80 Purge Threat 221 | . . . . . 58 . 13 150 Squads Dispatched 24 | . 1 . . 1 1 4 5 12 Investigation 3 | . . . . 1 1 1 . . Extermination 9 | . . . . . . 3 1 5 Reinforcement 6 | . 1 . . . . . 1 4 Assault 3 | . . . . . . . . 3 Garrison 3 | . . . . . . . 3 . Intercept . | . . . . . . . . . Searches Triggered . | . . . . . . . . . Construction Impeded 1 | . . . . . . . . 1 Haulers Reinforced . | . . . . . . . . . Active Scanning Responses . | . . . . . . . . . Cargo Convoy Interrupts 1 | . . . . . . . . 1 Stealth | -11 -10 -10 -10 -9 -8 -7 -6 -5 --------- Run | Yrd Mat Min Exi Min Mat Fac Fac Fac Distress Signals 6 | . 1 . . . . 1 . 4 Communications Jammed . | . . . . . . . . . Distress Signals . | . . . . . . . . . Times Spotted 124 | . 8 5 . . 9 14 22 66 Peak Tracking Total 9 | . 6 2 . . 4 4 4 9 Tactical Retreats 12 | . . 1 . . 1 1 3 6 ECM-based Alert Blocks 9 | . . . . . . 2 7 . Traps | -11 -10 -10 -10 -9 -8 -7 -6 -5 ------- Run | Yrd Mat Min Exi Min Mat Fac Fac Fac Traps Triggered 6 | . . . . . . 1 . 5 Indirectly . | . . . . . . . . . Trap Hack Attempts . | . . . . . . . . . Triggered . | . . . . . . . . . Disarmed . | . . . . . . . . . Reprogrammed . | . . . . . . . . . Reused . | . . . . . . . . . Traps Extracted . | . . . . . . . . . Installed . | . . . . . . . . . Triggered . | . . . . . . . . . Machines | -11 -10 -10 -10 -9 -8 -7 -6 -5 ---------- Run | Yrd Mat Min Exi Min Mat Fac Fac Fac Machines Disabled 11 | . . 1 . . . 4 . 6 Max in Single Turn 2 | . . 1 . . . 1 . 2 Garrison Access 1 | . . . . . . . . 1 Machines Repaired . | . . . . . . . . . Machines Dismantled . | . . . . . . . . . Machines Sabotaged . | . . . . . . . . . Overloaded Fab Kills . | . . . . . . . . . Hacking | -11 -10 -10 -10 -9 -8 -7 -6 -5 --------- Run | Yrd Mat Min Exi Min Mat Fac Fac Fac Machines Accessed 28 | . . . 5 1 6 5 5 6 Terminals 14 | . . . . . 5 2 3 4 Fabricators 1 | . . . . . . 1 . . Repair Stations 1 | . . . . . . 1 . . Recycling Units 3 | . . . . . . . 1 2 Scanalyzers 3 | . . . . . 1 1 1 . Garrison Access . | . . . . . . . . . Total Hacks 82 | . . . 42 1 13 8 10 8 Successful 64 | . . . 42 1 9 3 5 4 Failed 18 | . . . . . 4 5 5 4 Catastrophic 4 | . . . . . . 2 1 1 Database Lockouts . | . . . . . . . . . Manual 7 | . . . 1 . 1 2 1 2 Terminals 26 | . . . . . 11 3 6 6 Fabricators 2 | . . . . . . 2 . . Repair Stations 2 | . . . . . . 2 . . Recycling Units 3 | . . . . . . . 1 2 Scanalyzers 6 | . . . . . 2 1 3 . Garrison Access . | . . . . . . . . . Terminal Hacks 56 | . . . 42 1 7 . 3 3 Record 43 | . . . 41 . . . 1 1 Robot Analysis 1 | . . . . . 1 . . . Prototype ID Bank 1 | . . . . . 1 . . . Open Door 1 | . . . . 1 . . . . Open DSF 2 | . . . . . . . 1 1 Alert Level 1 | . . . . . 1 . . . Unreport Threat 3 | . . . . . 1 . 1 1 Dispatch Records 1 | . . . . . 1 . . . Maintenance Status 1 | . . . . . 1 . . . Hauler Manifests 1 | . . . . . 1 . . . Proto ID Catalog 1 | . . . 1 . . . . . Fabricator Hacks 1 | . . . . . . 1 . . Network Status 1 | . . . . . . 1 . . Repair Station Hacks 2 | . . . . . . 2 . . Scan Component 1 | . . . . . . 1 . . Repair 1 | . . . . . . 1 . . Recycling Unit Hacks 2 | . . . . . . . 1 1 Retrieve Components 2 | . . . . . . . 1 1 Scanalyzer 3 | . . . . . 2 . 1 . Retrieve Study 3 | . . . . . 2 . 1 . Garrison Access Hacks . | . . . . . . . . . Unauthorized Hacks . | . . . . . . . . . Terminals . | . . . . . . . . . Fabricators . | . . . . . . . . . Repair Stations . | . . . . . . . . . Recycling Units . | . . . . . . . . . Scanalyzers . | . . . . . . . . . Garrison Access . | . . . . . . . . . Data Cores Recovered . | . . . . . . . . . Used . | . . . . . . . . . Hacking Detections 14 | . . . . . 5 3 3 3 Full Trace Events 1 | . . . . . . 1 . . Feedback Events . | . . . . . . . . . Feedback Blocked . | . . . . . . . . . Robot Schematics Acquired . | . . . . . . . . . Robots Built . | . . . . . . . . . Authchips . | . . . . . . . . . Time . | . . . . . . . . . Total Robot Build Rating . | . . . . . . . . . Part Schematics Acquired . | . . . . . . . . . Parts Built . | . . . . . . . . . Authchips . | . . . . . . . . . Time . | . . . . . . . . . Total Part Build Rating . | . . . . . . . . . Part Studies Acquired 3 | . . . . . 2 . 1 . Parts Repaired 1 | . . . . . . 1 . . Time 26 | . . . . . . 26 . . Parts Recycled . | . . . . . . . . . Recycled Matter . | . . . . . . . . . Retrieved Matter . | . . . . . . . . . Retrieved Components 10 | . . . . . . . 10 . Parts Scanalyzed . | . . . . . . . . . Part Schematics Acquired . | . . . . . . . . . Parts Damaged . | . . . . . . . . . Bothacking | -11 -10 -10 -10 -9 -8 -7 -6 -5 ------------ Run | Yrd Mat Min Exi Min Mat Fac Fac Fac Used RIF Installer . | . . . . . . . . . Robots Hacked . | . . . . . . . . . Non-combat . | . . . . . . . . . Combat . | . . . . . . . . . Robot Hacks Applied . | . . . . . . . . . Relay Couplers Released 2 | . . . . . . . . 2 Machine Destruction 2 | . . . . . . . . 2 Fabnet Peak Effective % . | . . . . . . . . . Robots Rewired . | . . . . . . . . . Allies Hacked . | . . . . . . . . . Hacks Repelled . | . . . . . . . . . Allies | -11 -10 -10 -10 -9 -8 -7 -6 -5 -------- Run | Yrd Mat Min Exi Min Mat Fac Fac Fac Total Allies 6 | . . 1 . . 1 . . 4 Largest Group 1 | . . 1 1 . 1 . . 1 Highest-Rated Group 142 | . . 31 31 . 26 . . 142 Highest-Rated Ally 142 | . . 31 31 . 26 . . 142 Total Orders 1 | . . . . . 1 . . . FOLLOW 1 | . . . . . 1 . . . Ally Attacks 20 | . . . . . . . . 20 Total Damage 1149 | . . . . . . . . 1149 Kills 6 | . . . . . . . . 6 Allies Corrupted 2 | . . . . . . . . 2 Allies Melted . | . . . . . . . . . Field Lobotomies 5 | . . . . . 1 . . 4 Intel | -11 -10 -10 -10 -9 -8 -7 -6 -5 ------- Run | Yrd Mat Min Exi Min Mat Fac Fac Fac Active Infowar (turns) 2829 | . . . . . 229 1486 886 228 Terrain 2581 | . . . . . 168 1486 886 41 ECM 2781 | . . . . . 229 1459 865 228 Robot Analysis Total 1 | . . . . . 1 . . . Derelict Logs Recovered 4 | . . 2 . 2 . . . . Drone Launches . | . . . . . . . . . Drone Recoveries . | . . . . . . . . . Exploration | -11 -10 -10 -10 -9 -8 -7 -6 -5 ------------- Run | Yrd Mat Min Exi Min Mat Fac Fac Fac Turns Passed 7665 | 83 157 334 1157 511 547 1486 886 2504 Spaces Moved 3758 | 53 93 175 573 211 264 783 451 1155 Core 89 | 9 6 . . . . . . 74 Treads 3094 | . 58 175 573 211 264 783 62 968 Legs 73 | 44 29 . . . . . . . Wheels . | . . . . . . . . . Hover . | . . . . . . . . . Flight 502 | . . . . . . . 389 113 Fastest Speed 21 | 50 120 160 160 240 156 156 21 21 Average Speed 157 | 115 153 160 199 240 165 156 88 149 Slowest Speed 752 | 120 250 160 240 240 240 160 752 450 Overloaded Moves . | . . . . . . . . . Propulsion Burnouts . | . . . . . . . . . Robots Hopped . | . . . . . . . . . Potential Cave-ins . | . . . . . . . . . Cave-ins Triggered . | . . . . . . . . . Exploration Rate (%) 33 | 3 23 40 91 55 23 23 13 28 Regions Visited 8 Branch Regions 3 Pre-discovered Areas 2 | . . 1 1 . . . . . Known Exits Taken 3 | . . . . 1 . 1 1 . Unknown Exits Taken 5 | 1 1 1 1 . 1 . . . Scrap Searched 1 | . . . . 1 . . . . Spaces Dug 4 | . . . . . . . . 4 Terrain Destroyed 98 | 2 . . . . . 2 . 94 Melee . | . . . . . . . . . Projectile 42 | . . . . . . 2 . 40 AOE 56 | 2 . . . . . . . 54 Terrain Rammed . | . . . . . . . . . Walls Destroyed . | . . . . . . . . . Machines Disabled . | . . . . . . . . . Actions | -11 -10 -10 -10 -9 -8 -7 -6 -5 --------- Run | Yrd Mat Min Exi Min Mat Fac Fac Fac Total 5092 | 70 106 196 586 216 330 991 884 1713 Wait 893 | . . . . 1 22 153 359 358 Move 3750 | 52 92 174 572 210 263 782 450 1155 Hop . | . . . . . . . . . Pick Up 65 | 10 6 1 4 3 12 11 10 8 Fast Attach 34 | . 3 . . . . . 6 25 Attach 42 | 6 . 1 . . 6 4 9 16 Detach 11 | . . . . . 1 . 1 9 Swap 34 | . . 1 5 2 4 4 9 9 Drop 48 | . 4 1 4 . 1 8 15 15 Fire 169 | 2 1 18 . . 21 29 25 73 Melee 41 | . . . . . . . . 41 Ram . | . . . . . . . . . Kick . | . . . . . . . . . Crush 4 | . . . . . . . . 4 Escape Stasis . | . . . . . . . . . Rewire 1 | . . . 1 . . . . . Trap . | . . . . . . . . . Miscellaneous . | . . . . . . . . . Route ------- -11/Scrapyard -10/Materials -10/Mines -10/Exiles -9/Mines -8/Materials -7/Factory (discovered 2 exits: *Fac / *Low) -6/Factory -5/Factory (discovered 2 exits: [*Fac] / *Upp) History --------- Turn | Location | Event 11 | -11/Scrapyard | Discovered new exit (range 16) 84 | -11/Scrapyard | Entered Materials 180 | -10/Materials | Discovered new exit (range 5) 241 | -10/Materials | Entered Mines 242 | -10/Mines | Assembled infested the area 283 | -10/Mines | Met 8R-AWN 317 | -10/Mines | Build established: Mutant 402 | -10/Mines | Learned Materials stockpile data 431 | -10/Mines | Found a hidden stash of uninstalled traps 533 | -10/Mines | Received a Mining Laser from a helpful Derelict 564 | -10/Mines | Discovered new exit (range 5) 575 | -10/Mines | Entered Exiles 575 | -10/Exiles | Accompanied by 1 ally 615 | -10/Exiles | Welcomed by 8R-AWN 639 | -10/Exiles | Met EX-HEX 705 | -10/Exiles | Met EX-BIN 723 | -10/Exiles | Aligned with FarCom system 724 | -10/Exiles | Given EX-Vault access code 764 | -10/Exiles | Opened EX-Vault 781 | -10/Exiles | Found Field Lobotomy Kit 848 | -10/Exiles | Warned to stay clear of 0b10 Research branches 899 | -10/Exiles | Met EX-DEC 907 | -10/Exiles | Learned location of Zion (-6) 979 | -10/Exiles | Discovered new exit (range 10) 1402 | -10/Exiles | Visited The Gauntlet 1732 | -10/Exiles | Left Exiles lab with Field Lobotomy Kit 1732 | -10/Exiles | Entered Mines 1759 | -9/Mines | Identified exit to Materials 1868 | -9/Mines | Met a Derelict shopkeep closing up shop 2007 | -9/Mines | Learned Materials stockpile data 2243 | -9/Mines | Entered Materials 2243 | -8/Materials | Evolved 4 slots: Propulsion x2, Utility x2 2245 | -8/Materials | Assimilated O-24 Administrator with FLK Orb 2671 | -8/Materials | Discovered new exit (range 16) 2790 | -8/Materials | Entered Factory 2790 | -7/Factory | Evolved 2 slots: Utility x1, Weapon x1 2926 | -7/Factory | Build established: Skirmisher 3646 | -7/Factory | Discovered new exit (range 15) 3690 | -7/Factory | Identified exit to Lower Caves 4025 | -7/Factory | Repaired ECM Suite 4224 | -7/Factory | Discovered new exit (range 6) 4231 | -7/Factory | Identified exit to Factory 4276 | -7/Factory | Entered another Factory area 4276 | -6/Factory | Evolved 2 slots: Propulsion x2 4561 | -6/Factory | Garrison activated, responded to threat 4869 | -6/Factory | Build established: Scavenger-Skirmisher 5159 | -6/Factory | Discovered new exit (range 11) 5161 | -6/Factory | Identified exit to Factory 5162 | -6/Factory | Entered another Factory area 5162 | -5/Factory | Evolved 2 slots: Power x1, Utility x1 5253 | -5/Factory | Lost 10 parts (2p6n2u) 5267 | -5/Factory | Core integrity fell below 50% 5464 | -5/Factory | Build established: Mutant 6043 | -5/Factory | Cargo convoy interrupted 6127 | -5/Factory | Build established: Scavenger-Skirmisher 6756 | -5/Factory | Discovered new exit (range 5) 6758 | -5/Factory | Assimilated H-71 Marshal with FLK Orb 6772 | -5/Factory | Identified exit to Upper Caves 7011 | -5/Factory | Assimilated X-67 Chaingunner with FLK Orb 7016 | -5/Factory | Assimilated Y-64 Sentinel with FLK Orb 7020 | -5/Factory | Assimilated X-67 Chaingunner with FLK Orb 7149 | -5/Factory | Core integrity fell below 20% 7262 | -5/Factory | First assault squad dispatched 7447 | -5/Factory | Build established: Scavenger-Mutant 7657 | -5/Factory | Discovered new exit (range 16) 7666 | -5/Factory | Destroyed by H-71 Marshal with Heavy Mass Driver Last Messages --------------- Dropped Mic. Fission Core. Acquired Fusion Compressor. Penetrated by Slug. FQ,ZG/BW5VTDWT9RBNQZNR#U9 S1PW80V0E,| Penetrated by Slug. Arm. Medium Treads destroyed. EXIT=FOUND Triggered Blade Trap. Massive razor-sharp blades shoot up from within the floor. Arm. Medium Treads severed. Med. Treads severed. Arm. Medium Treads severed. Triggered Blade Trap. Massive razor-sharp blades shoot up from within the floor. Arm. Medium Treads severed. Penetrated by Slug. Tesla Rifle destroyed. Penetrated by Slug. Map ----- +----------------------------------------------------+ | ???????????????????????????????????????? | | ???????????????????????????????????????? | | ???????????????????????????????????????? | | ???????????????????????????????????????? | | ???????????????????????????????????????? | | ???????????????????????????????????????? | | ???????????????????????????????????????? | | ???????????????????????????????????????? | | ???????????????????????????????????????? | | ???????????????????????????????????????? | | ???????????????????????????????????????? | | ?????????????###+###???????????????????? | | ????????????? ?????????????????? | | ????????????? ??????????????????? | | ????????????? < !??????????????????? | | ????????????? ???????????????????? | | ????????????? ???????????????????? | | ?????????????#hHh #???????????????????? | | ????????????? #???????????????????? | | ?????????????T #???????????????????? | | ?????????????# ###?????????????????? | | ?????????????# ??????????????????? | | ?????????????? #???????????????????? | | ?????????????? #???????????????????? | | ??????????????# %#????????????????????? | | ??????????????#@ #????????????????????? | | ??########????#== #????????????????????? | | ??# #????#== #????????????????????? | | ??# == #????# #????????????????????? | | ??# =] #????# #????????????????????? | | ??# #????#% #????????????????????? | | ??# #????# #????????????????????? | | ??? ??????# ;????????????????????? | | ??###+###?????# ##???????????????????? | | ??# ####### #????????????????????? | | ??# #????????????????????? | | ??# " #????????????????????? | | ??# * #????##############??? | | ??# ###########????# #??? | | ??### ###????#######???# #??? | | ????# #??????# #???# = #??? | | ????# ######## #???# #??? | | ????# " #???# #??? | | ????########## #???# #??? | | ?????????????# #???# #??? | | ?????????????### ###???# #??? | | ???????????????# #?????# #??? | | ???????#######?# #?????# #??? | | ??######"""""### #?????# #??? | | ??# ! # #?????# #??? | +----------------------------------------------------+ Best States ------------- Heat Dissipation 94 Coolant Potential 50 Energy Generation 29 Energy Capacity 365 Matter Stores 300 Matter Capacity 300 Sight Range 16 Terrain Scan Range 16 Terrain Scan Density 110 ECM Strength 1 Corruption Containment 8 Armor Coverage 600 Evasion (%) 65 Recoil Reduction 6 Defensive Hacking 12 Item Schematics ----------------- None Robot Schematics ------------------ None Fabricated ------------ Nothing Repaired ---------- ECM Suite | 35% | -7/Factory Studied --------- Imp. Treads | -8/Materials | Hacked Adv. Treads | -8/Materials | Hacked VTOL Module | -6/Factory | Hacked Alien Tech Used ----------------- None Achievements -------------- None Challenges ------------ None Game ------ Seed DisintegrationProtonJammer Manual? 0 Play Time 01:14:21 Cumulative 50.3 hours Start 2025.11.06 @ 08:21:28 End 2025.11.06 @ 10:51:49 Sessions 3 Manual Loads 0 Difficulty Rogue Special Mode None Game No. 67 Rogue 67 Adventurer 0 Explorer 0 Win Type - Total 0 Types 0/0/0/0/0/0/0/0/0/0 Lore% 32 Gallery% 39 Achievement% 27 Wizard Run 0 Options --------- Layout 2 ASCII 0 Keyboard 0 Movement Mouse Keybinds 0 Fullscreen 1 Font 24/Smallcaps Map View 50x44 Zoom Use 60% Tactical HUD 0 Map Filters NONE Filters NONE Steam 1 RUN: fa889873-d564-4d16-9453-432659b38fcc